bitfinex/quotes_BTCUSD_20250922
["timestamp","ask_amount","ask_price","bid_price","bid_amount"]
[1758510278073,0.64318301,114470.0,114460.0,0.2646032]
[1758510278313,1.08406421,114470.0,114460.0,0.17773353]
[1758510278527,1.11067421,114470.0,114460.0,0.17773353]
[1758510278973,0.93595595,114470.0,114460.0,0.17773353]
[1758510280318,0.67174301,114470.0,114460.0,0.17773353]
[1758510280541,0.93595595,114470.0,114460.0,0.17773353]
[1758510281776,0.63198595,114470.0,114460.0,0.17933353]
[1758510281962,0.90930595,114470.0,114460.0,0.17933353]
[1758510282168,1.17351889,114470.0,114460.0,0.17933353]
[1758510282381,0.93284595,114470.0,114460.0,0.17933353]
[1758510282582,0.67170301,114470.0,114460.0,0.17933353]
[1758510282806,0.93591595,114470.0,114460.0,0.17773353]
[1758510282963,0.67170301,114470.0,114460.0,0.17773353]
[1758510283326,0.93591595,114470.0,114460.0,0.17773353]
[1758510283624,0.67170301,114470.0,114460.0,0.17773353]
[1758510283775,0.93591595,114470.0,114460.0,0.17773353]
[1758510284794,1.20012889,114470.0,114460.0,0.17773353]
[1758510285195,0.63003595,114470.0,114460.0,0.2646032]
[1758510285398,0.02627201,114470.0,114460.0,0.5353032]
[1758510285599,1.27680828,114480.0,114470.0,0.17471826]
[1758510285797,2.14523416,114480.0,114470.0,0.17631826]
[1758510286080,1.89422332,114480.0,114470.0,0.17631826]
[1758510286291,2.20006332,114480.0,114470.0,0.17471826]
[1758510288075,2.20206332,114480.0,114470.0,0.17471826]
[1758510288750,1.89817332,114480.0,114470.0,0.26158793]
[1758510288936,2.17345332,114480.0,114470.0,0.26158793]
[1758510289333,1.55617332,114480.0,114470.0,0.18331826]
[1758510289534,1.80523416,114480.0,114470.0,0.26858793]
[1758510289746,0.99952828,114480.0,114470.0,0.26858793]
[1758510289950,1.26374122,114480.0,114470.0,0.26958793]
[1758510291022,0.99952828,114480.0,114470.0,0.26958793]
[1758510291225,0.99952828,114480.0,114470.0,0.64422672]
[1758510291469,0.99952828,114480.0,114470.0,0.37452672]
[1758510292027,0.99952828,114480.0,114470.0,0.45079057]
[1758510292235,0.57167219,114480.0,114470.0,0.84079057]
[1758510292434,0.22228816,114480.0,114470.0,0.84079057]
[1758510292637,1e-08,114480.0,114470.0,0.84079057]
[1758510293080,1e-08,114480.0,114470.0,0.83579057]
[1758510293276,1e-08,114480.0,114470.0,0.877805]
[1758510293704,1e-08,114480.0,114470.0,1.155005]
[1758510293878,1e-08,114480.0,114470.0,1.153005]
[1758510294500,1e-08,114480.0,114470.0,1.140005]
[1758510294903,1e-08,114480.0,114470.0,1.11599057]
[1758510295147,1e-08,114480.0,114470.0,0.86979057]
[1758510295301,1e-08,114480.0,114470.0,1.14695057]
[1758510295724,1e-08,114480.0,114470.0,1.12795057]
[1758510295911,1e-08,114480.0,114470.0,1.15195057]
[1758510297524,1e-08,114480.0,114470.0,0.87479057]
[1758510297720,1e-08,114480.0,114470.0,1.15191057]
[1758510298196,1e-08,114480.0,114470.0,0.87479057]
[1758510298434,1e-08,114480.0,114470.0,1.15191057]
[1758510299185,0.06893283,114500.0,114490.0,0.61468774]
[1758510299476,0.06893283,114500.0,114490.0,1.37239853]
[1758510299694,0.06893283,114500.0,114490.0,1.42399853]
[1758510299932,0.39174294,114510.0,114500.0,0.20482438]
[1758510300155,0.39387294,114510.0,114500.0,0.29009405]
[1758510300382,0.39395511,114510.0,114500.0,0.29009405]
[1758510300629,0.39395511,114510.0,114500.0,0.64196094]
[1758510300868,0.12974217,114510.0,114500.0,0.66821846]
[1758510301056,0.39395511,114510.0,114500.0,0.66821846]
[1758510301428,0.39395511,114510.0,114500.0,0.67621846]
[1758510301895,0.39395511,114510.0,114500.0,0.69221846]
[1758510304296,0.39395511,114510.0,114500.0,0.69217846]
[1758510304518,0.12974217,114510.0,114500.0,0.69217846]
[1758510304720,0.65816805,114510.0,114500.0,0.90546903]
[1758510304932,0.65816805,114510.0,114500.0,0.83068214]
[1758510305333,0.83282528,114510.0,114500.0,0.28394215]
[1758510305533,0.83282528,114510.0,114500.0,0.19867248]
[1758510305765,0.83282528,114510.0,114500.0,0.18267248]
[1758510305965,0.40678217,114510.0,114500.0,0.2461125]
[1758510306171,0.93520805,114510.0,114500.0,0.2461125]
[1758510306576,0.55816805,114510.0,114500.0,0.2551125]
[1758510307296,0.55816805,114510.0,114500.0,0.2471125]
[1758510307939,0.58442992,114510.0,114500.0,0.2431125]
[1758510308184,0.58442992,114510.0,114500.0,0.2451125]
[1758510308404,0.05600404,114510.0,114500.0,0.33038217]
[1758510308663,0.29268698,114510.0,114500.0,0.32698217]
[1758510308895,0.31716698,114510.0,114500.0,0.32898217]
[1758510309119,0.32021698,114510.0,114500.0,0.32738217]
[1758510309352,0.29055698,114510.0,114500.0,0.32898217]
[1758510309578,8.217e-05,114510.0,114500.0,0.35913407]
[1758510310036,8.217e-05,114510.0,114500.0,0.36013407]
[1758510310263,8.217e-05,114510.0,114500.0,0.45457407]
[1758510310487,8.217e-05,114510.0,114500.0,0.48083022]
[1758510310944,8.217e-05,114510.0,114500.0,0.75053022]
[1758510311188,8.217e-05,114510.0,114500.0,0.74853022]
[1758510311392,0.26636511,114510.0,114500.0,0.74553022]
[1758510311614,0.26952511,114510.0,114500.0,1.02693022]
[1758510311840,0.29254511,114510.0,114500.0,0.76293022]
[1758510312316,0.29254511,114510.0,114500.0,1.03993022]
[1758510312798,0.28938511,114510.0,114500.0,1.04153022]
[1758510313991,0.26636511,114510.0,114500.0,1.04153022]
[1758510315082,0.26429511,114510.0,114500.0,1.04153022]
[1758510315290,8.217e-05,114510.0,114500.0,1.04153022]
[1758510316633,8.217e-05,114510.0,114500.0,1.04149022]
[1758510319911,0.00215217,114510.0,114500.0,1.03989022]
[1758510320120,0.02517217,114510.0,114500.0,1.03989022]
[1758510320348,0.29836896,114510.0,114500.0,0.76293022]
[1758510320565,0.29836896,114510.0,114500.0,0.98344217]
[1758510320778,0.03445092,114510.0,114500.0,1.01359407]
[1758510320989,0.29836896,114510.0,114500.0,0.73667407]
[1758510321207,0.29836896,114510.0,114500.0,0.61208217]
[1758510321422,0.562287,114510.0,114500.0,0.60608217]
[1758510321639,0.04261395,114510.0,114500.0,0.87400217]
[1758510321848,0.33279324,114510.0,114500.0,0.88200217]
[1758510322364,0.33279324,114510.0,114500.0,0.87800217]
[1758510322574,0.33279324,114510.0,114500.0,0.88100217]
[1758510322792,0.33279324,114510.0,114500.0,0.87300217]
[1758510323007,0.33279324,114510.0,114500.0,0.87800217]
[1758510324285,0.0688752,114510.0,114500.0,0.87800217]
[1758510324476,0.33279324,114510.0,114500.0,0.87800217]
[1758510327336,0.32463021,114510.0,114500.0,0.87800217]
[1758510327548,0.30161021,114510.0,114500.0,0.87800217]
[1758510327769,0.32520021,114510.0,114500.0,0.87800217]
[1758510328652,0.03246217,114510.0,114500.0,0.87960217]
[1758510328908,0.30139021,114510.0,114500.0,0.33138217]
[1758510329118,0.76355548,114510.0,114500.0,0.008]
[1758510329339,1.04864269,114510.0,114500.0,0.008]
[1758510329560,1.38864269,114510.0,114500.0,0.008]
[1758510330589,1.11172269,114510.0,114500.0,0.008]
[1758510330832,1.38864269,114510.0,114500.0,0.008]
[1758510331317,0.17467642,114500.0,114480.0,0.46034524]
[1758510331540,0.29251804,114490.0,114480.0,0.60999485]
[1758510331773,0.29863679,114490.0,114480.0,0.60999485]
[1758510332200,0.32490254,114490.0,114480.0,0.60999485]
[1758510332391,0.29863679,114490.0,114480.0,0.60999485]
[1758510332631,0.29863679,114490.0,114480.0,0.61299485]
[1758510333305,0.29863679,114490.0,114480.0,0.46334524]
[1758510333518,0.29863679,114490.0,114480.0,0.46034524]
[1758510334836,0.29863679,114490.0,114480.0,0.46534524]
[1758510335068,0.29863679,114490.0,114480.0,0.46834524]
[1758510335284,0.29251804,114490.0,114480.0,0.46834524]
[1758510335520,0.73723976,114490.0,114480.0,0.008]
[1758510335746,1.01419976,114490.0,114480.0,0.008]
[1758510335982,0.75012703,114490.0,114480.0,0.008]
[1758510336821,0.47316703,114490.0,114480.0,0.008]
[1758510337676,0.75012703,114490.0,114480.0,0.008]
[1758510337895,0.75012703,114490.0,114480.0,0.003]
[1758510338092,0.75012703,114490.0,114480.0,0.001]
[1758510338454,0.75012703,114490.0,114480.0,0.003]
[1758510338907,0.47316703,114490.0,114480.0,0.003]
[1758510339106,0.47316703,114490.0,114480.0,0.177703]
[1758510339107,0.75012703,114490.0,114480.0,0.177703]
[1758510339552,0.75012703,114490.0,114480.0,0.003]
[1758510340193,0.74401109,114490.0,114480.0,0.003]
[1758510340759,0.46705109,114490.0,114480.0,0.003]
[1758510340969,0.74401109,114490.0,114480.0,0.003]
[1758510341396,1.00792913,114490.0,114480.0,0.003]
[1758510341755,0.73096913,114490.0,114480.0,0.003]
[1758510341961,1.34792913,114490.0,114480.0,0.003]
[1758510342377,1.4331988,114490.0,114480.0,0.003]
[1758510342532,1.43930436,114490.0,114480.0,0.003]
[1758510342789,1.46557405,114490.0,114480.0,0.003]
[1758510343375,1.46557405,114490.0,114480.0,0.001]
[1758510343962,1.18861405,114490.0,114480.0,0.001]
[1758510344171,1.46557405,114490.0,114480.0,0.001]
[1758510344371,0.51471437,114480.0,114460.0,0.4531702]
[1758510344600,0.28952804,114470.0,114460.0,0.27088987]
[1758510345697,0.28952804,114470.0,114460.0,0.27601328]
[1758510345901,0.28952804,114470.0,114460.0,0.27901328]
[1758510346309,0.26391804,114470.0,114460.0,0.27901328]
[1758510346525,0.26391804,114470.0,114460.0,0.28218328]
[1758510346951,0.26391804,114470.0,114460.0,0.36428295]
[1758510347415,0.26391804,114470.0,114460.0,0.36745295]
[1758510347822,0.64354,114480.0,114470.0,0.17471826]
[1758510348024,0.34,114480.0,114470.0,0.17686826]
[1758510348247,0.60391804,114480.0,114470.0,0.18003826]
[1758510348424,0.60391804,114480.0,114470.0,0.23425538]
[1758510349270,0.60391804,114480.0,114470.0,0.23625538]
[1758510349600,0.60391804,114480.0,114470.0,0.23408538]
[1758510351877,0.62952804,114480.0,114470.0,0.23408538]
[1758510352053,0.63251804,114480.0,114470.0,0.23193538]
[1758510352491,0.62952804,114480.0,114470.0,0.23408538]
[1758510353639,0.63251804,114480.0,114470.0,0.23408538]
[1758510354050,0.65495407,114490.0,114480.0,0.174703]
[1758510354254,0.8247318,114490.0,114480.0,0.174703]
[1758510354495,1.1016918,114490.0,114480.0,0.174703]
[1758510354687,1.1252818,114490.0,114480.0,0.176853]
[1758510354905,1.1252818,114490.0,114480.0,0.174703]
[1758510355526,1.1272818,114490.0,114480.0,0.174703]
[1758510356190,1.1242918,114490.0,114480.0,0.176853]
[1758510356345,1.1272818,114490.0,114480.0,0.174703]
[1758510357364,1.1252818,114490.0,114480.0,0.174703]
[1758510357672,1.1272818,114490.0,114480.0,0.174703]
[1758510357890,1.1252818,114490.0,114480.0,0.174703]
[1758510358272,1.1252818,114490.0,114480.0,0.175703]
[1758510359019,1.1252818,114490.0,114480.0,0.177703]
[1758510359910,0.8483218,114490.0,114480.0,0.177703]
[1758510360107,1.1252818,114490.0,114480.0,0.177703]
[1758510362386,1.1252818,114490.0,114480.0,0.003]
[1758510362583,1.21055147,114490.0,114480.0,0.003]
[1758510362726,1.1252818,114490.0,114480.0,0.003]
[1758510362935,1.1252818,114490.0,114480.0,0.177703]
[1758510364163,1.1252818,114490.0,114480.0,0.003]
[1758510364802,1.1252818,114490.0,114480.0,0.177703]
[1758510367676,0.8483218,114490.0,114480.0,0.177703]
[1758510367944,0.28307195,114490.0,114480.0,0.21799513]
[1758510368358,0.27696,114490.0,114480.0,0.21799513]
[1758510368767,0.56714472,114500.0,114490.0,0.17468774]
[1758510369015,0.03239844,114500.0,114490.0,0.17973774]
[1758510369252,0.28309176,114500.0,114490.0,0.21519396]
[1758510369471,0.63018212,114510.0,114500.0,0.17467248]
[1758510369657,1.11687919,114510.0,114500.0,0.17467248]
[1758510369863,1.38079723,114510.0,114500.0,0.17467248]
[1758510370277,1.38079723,114510.0,114500.0,0.17267248]
[1758510370729,1.38079723,114510.0,114500.0,0.17279589]
[1758510371557,1.38579723,114510.0,114500.0,0.17279589]
[1758510371746,1.38579723,114510.0,114500.0,0.00012341]
[1758510371747,1.38079723,114510.0,114500.0,0.00012341]
[1758510373008,1.20714,114510.0,114500.0,0.17479589]
[1758510373214,1.20814,114510.0,114500.0,0.17479589]
[1758510373419,1.38179723,114510.0,114500.0,0.17479589]
[1758510374014,0.93018,114510.0,114500.0,0.17479589]
[1758510374223,1.37566739,114510.0,114500.0,0.17479589]
[1758510374590,1.37566739,114510.0,114500.0,0.00012341]
[1758510375053,1.38179022,114510.0,114500.0,0.00012341]
[1758510375378,1.37566739,114510.0,114500.0,0.00012341]
[1758510375633,1.76705996,114510.0,114500.0,0.00012341]
[1758510375855,2.12421989,114510.0,114500.0,0.00012341]
[1758510376712,2.41315798,114510.0,114500.0,0.00012341]
[1758510376925,2.39708172,114510.0,114500.0,0.00012341]
[1758510377146,2.39704172,114510.0,114500.0,0.00012341]
[1758510377351,2.38887859,114510.0,114500.0,0.00012341]
[1758510377761,1.84778033,114510.0,114500.0,0.00012341]
[1758510377982,2.38911859,114510.0,114500.0,0.00012341]
[1758510378194,2.30384892,114510.0,114500.0,0.00012341]
[1758510379136,2.02668892,114510.0,114500.0,0.00012341]
[1758510379343,2.03967066,114510.0,114500.0,0.00012341]
[1758510379928,2.30384892,114510.0,114500.0,0.00012341]
[1758510380158,2.38911859,114510.0,114500.0,0.00012341]
[1758510381153,2.11195859,114510.0,114500.0,0.00012341]
[1758510381359,2.38903859,114510.0,114500.0,0.00012341]
[1758510382620,2.11195859,114510.0,114500.0,0.00012341]
[1758510382956,2.38903859,114510.0,114500.0,0.00012341]
[1758510386291,2.38904071,114510.0,114500.0,0.00012341]
[1758510389165,2.76696071,114510.0,114500.0,0.00012341]
[1758510393212,2.7912001,114510.0,114500.0,0.00012341]
[1758510393841,3.88373488,114510.0,114500.0,0.00012341]
[1758510394056,3.85337047,114510.0,114500.0,0.00012341]
[1758510394252,3.88373576,114510.0,114500.0,0.00012341]
[1758510394723,3.89190281,114510.0,114500.0,0.00012341]
[1758510394926,3.89090281,114510.0,114500.0,0.00012341]
[1758510395142,3.89078281,114510.0,114500.0,0.00012341]
[1758510395346,3.90178281,114510.0,114500.0,0.00012341]
[1758510396435,3.90578281,114510.0,114500.0,0.00012341]
[1758510397086,1.63424419,114510.0,114500.0,0.00012341]
[1758510397295,2.13139366,114510.0,114500.0,0.00012341]
[1758510397491,1.85443366,114510.0,114500.0,0.00012341]
[1758510397730,2.13367366,114510.0,114500.0,0.00219341]
[1758510398055,2.13073158,114510.0,114500.0,0.00219341]
[1758510398275,2.13645158,114510.0,114500.0,0.00219341]
[1758510398508,2.09276158,114510.0,114500.0,0.00520341]
[1758510398731,1.81348158,114510.0,114500.0,0.00520341]
[1758510398921,2.09268158,114510.0,114500.0,0.00520341]
[1758510399150,1.81348158,114510.0,114500.0,0.00219341]
[1758510399380,2.17795125,114510.0,114500.0,0.00219341]
[1758510399590,2.17182743,114510.0,114500.0,0.00219341]
[1758510399831,2.08651776,114510.0,114500.0,0.00520341]
[1758510400042,2.08751776,114510.0,114500.0,0.00520341]
[1758510400921,2.08351776,114510.0,114500.0,0.00520341]
[1758510401316,1.78339776,114510.0,114500.0,0.00520341]
[1758510402607,1.00836234,114510.0,114500.0,0.17987589]
[1758510402880,0.02626408,114510.0,114500.0,0.21533222]
[1758510403139,0.26417826,114530.0,114520.0,0.17464198]
[1758510403375,0.54597826,114530.0,114520.0,0.17464198]
[1758510403578,0.9122392,114530.0,114520.0,0.17972198]
[1758510403978,0.2904392,114530.0,114520.0,0.17972198]
[1758510404192,0.10448,114540.0,114530.0,0.17462673]
[1758510404403,0.03625746,114540.0,114530.0,0.17970673]
[1758510404639,0.65837746,114540.0,114530.0,0.17970673]
[1758510404858,0.92255572,114540.0,114530.0,0.17970673]
[1758510405077,1.18673398,114540.0,114530.0,0.17970673]
[1758510405336,0.31837746,114540.0,114530.0,0.17970673]
[1758510405554,1.18673398,114540.0,114530.0,0.17970673]
[1758510406059,0.37625746,114540.0,114530.0,0.21997259]
[1758510406259,0.31849746,114540.0,114530.0,0.21997259]
[1758510406479,0.58267572,114540.0,114530.0,0.17970673]
[1758510406681,0.84685398,114540.0,114530.0,0.17970673]
[1758510406883,0.82059652,114540.0,114530.0,0.18570673]
[1758510407082,0.82059652,114540.0,114530.0,0.18870673]
[1758510408156,0.82948867,114540.0,114530.0,0.18870673]
[1758510411433,0.30113215,114540.0,114530.0,0.18870673]
[1758510411598,0.82948867,114540.0,114530.0,0.18870673]
[1758510413927,0.82948867,114540.0,114530.0,0.34091226]
[1758510413928,0.27417826,114540.0,114530.0,0.34091226]
[1758510414154,0.01,114540.0,114530.0,0.62287226]
[1758510415934,0.27417826,114540.0,114530.0,0.62287226]
[1758510416154,0.27417826,114540.0,114530.0,0.34091226]
[1758510416405,0.27417826,114540.0,114530.0,0.62287226]
[1758510416630,0.01,114540.0,114530.0,0.37106416]
[1758510416856,0.01,114540.0,114530.0,0.65278416]
[1758510418219,0.01,114540.0,114530.0,0.37106416]
[1758510418474,0.01,114540.0,114530.0,0.65266416]
[1758510418937,0.01,114540.0,114530.0,0.37106416]
[1758510419175,0.01,114540.0,114530.0,0.65258416]
[1758510419402,0.01,114540.0,114530.0,0.37106416]
[1758510419606,0.01,114540.0,114530.0,0.65254416]
[1758510419802,0.01,114540.0,114530.0,0.37106416]
[1758510420046,0.01,114540.0,114530.0,0.65246416]
[1758510420248,0.01,114540.0,114530.0,0.37106416]
[1758510420450,0.01,114540.0,114530.0,0.65246416]
[1758510420861,0.01,114540.0,114530.0,0.37106416]
[1758510421324,0.01,114540.0,114530.0,0.65234416]
[1758510422179,0.01,114540.0,114530.0,0.37106416]
[1758510422394,0.01,114540.0,114530.0,0.65230416]
[1758510422844,0.01,114540.0,114530.0,0.64076416]
[1758510423060,0.27417826,114540.0,114530.0,0.63775416]
[1758510423194,0.27417826,114540.0,114530.0,0.64074416]
[1758510423594,0.27417826,114540.0,114530.0,0.92190416]
[1758510423813,0.27417826,114540.0,114530.0,0.64074416]
[1758510424014,0.27417826,114540.0,114530.0,0.92190416]
[1758510424221,0.01,114540.0,114530.0,0.92190416]
[1758510424810,0.01,114540.0,114530.0,0.64074416]
[1758510425214,0.27417826,114540.0,114530.0,0.64074416]
[1758510425413,0.27417826,114540.0,114530.0,0.92174416]
[1758510426041,0.27417826,114540.0,114530.0,0.64074416]
[1758510426238,0.01,114540.0,114530.0,0.92170416]
[1758510428242,0.01,114540.0,114530.0,0.65200416]
[1758510428456,0.01,114540.0,114530.0,0.99200416]
[1758510428666,1e-08,114540.0,114530.0,1.04656578]
[1758510428900,1e-08,114540.0,114530.0,1.09656578]
[1758510429328,1e-08,114540.0,114530.0,1.12281313]
[1758510430000,1e-08,114540.0,114530.0,1.11981313]
[1758510430598,1e-08,114540.0,114530.0,1.12481313]
[1758510430832,1e-08,114540.0,114530.0,1.11881313]
[1758510431022,1e-08,114540.0,114530.0,1.12881313]
[1758510431235,1e-08,114540.0,114530.0,0.84785313]
[1758510431445,1e-08,114540.0,114530.0,1.13593313]
[1758510433698,1e-08,114540.0,114530.0,0.84785313]
[1758510433846,1e-08,114540.0,114530.0,1.08613313]
[1758510434045,1e-08,114540.0,114530.0,1.13613313]
[1758510440698,1e-08,114540.0,114530.0,1.08238313]
[1758510440897,1e-08,114540.0,114530.0,1.13546313]
[1758510441506,1e-08,114540.0,114530.0,1.85316313]
[1758510443389,1e-08,114540.0,114530.0,1.51564313]
[1758510443591,1e-08,114540.0,114530.0,1.84976313]
[1758510443790,1e-08,114540.0,114530.0,1.79976313]
[1758510443943,1e-08,114540.0,114530.0,1.85284313]
[1758510444913,1e-08,114540.0,114530.0,1.80284313]
[1758510445135,1e-08,114540.0,114530.0,1.85284313]
[1758510445374,1e-08,114540.0,114530.0,1.51256313]
[1758510445606,0.02783001,114540.0,114530.0,1.74996313]
[1758510445836,0.02783001,114540.0,114530.0,1.79996313]
[1758510446236,0.02783001,114540.0,114530.0,1.74996313]
[1758510446237,0.03394878,114540.0,114530.0,1.74996313]
[1758510446453,0.02783001,114540.0,114530.0,1.79996313]
[1758510446928,0.03394877,114540.0,114530.0,1.79996313]
[1758510447315,0.03394877,114540.0,114530.0,1.35196313]
[1758510447887,0.03078877,114540.0,114530.0,1.35196313]
[1758510448106,0.00611877,114540.0,114530.0,1.35196313]
[1758510448312,1e-08,114540.0,114530.0,1.35507313]
[1758510448517,0.00305,114570.0,114560.0,0.174581]
[1758510448868,0.00507,114570.0,114560.0,0.83633658]
[1758510449080,0.09876283,114570.0,114560.0,0.83633658]
[1758510449391,0.02983,114570.0,114560.0,0.83633658]
[1758510449798,0.02987706,114570.0,114560.0,0.83733658]
[1758510451041,0.29358903,114570.0,114560.0,0.83733658]
[1758510456293,0.02987706,114570.0,114560.0,0.83733658]
[1758510456948,0.29358903,114570.0,114560.0,0.83733658]
[1758510458353,0.02987706,114570.0,114560.0,0.83733658]
[1758510458729,0.29358903,114570.0,114560.0,0.83733658]
[1758510458941,0.29358903,114570.0,114560.0,0.54781658]
[1758510459184,0.29358903,114570.0,114560.0,0.83657658]
[1758510462737,0.02987706,114570.0,114560.0,0.83657658]
[1758510462940,0.29358903,114570.0,114560.0,0.83657658]
[1758510463091,0.02987706,114570.0,114560.0,0.83657658]
[1758510463295,0.29358903,114570.0,114560.0,0.83657658]
[1758510463865,0.29358903,114570.0,114560.0,0.54781658]
[1758510464094,0.29358903,114570.0,114560.0,0.83589658]
[1758510464474,0.29358903,114570.0,114560.0,0.83585658]
[1758510464943,0.29358903,114570.0,114560.0,0.54781658]
[1758510465129,0.29358903,114570.0,114560.0,0.83573658]
[1758510465282,0.02987706,114570.0,114560.0,0.83573658]
[1758510465489,0.29358903,114570.0,114560.0,0.83573658]
[1758510465857,0.29358903,114570.0,114560.0,0.54781658]
[1758510466272,0.29358903,114570.0,114560.0,0.83557658]
[1758510466458,0.29053903,114570.0,114560.0,0.83752658]
[1758510467048,0.29053903,114570.0,114560.0,0.54976658]
[1758510467443,0.29358903,114570.0,114560.0,0.83541658]
[1758510467989,4.706e-05,114570.0,114560.0,0.84047658]
[1758510468423,4.706e-05,114570.0,114560.0,0.87062848]
[1758510470129,4.706e-05,114570.0,114560.0,0.60092848]
[1758510473628,4.706e-05,114570.0,114560.0,0.59969848]
[1758510474029,4.706e-05,114570.0,114560.0,0.31021848]
[1758510474251,4.706e-05,114570.0,114560.0,0.59969848]
[1758510474672,4.706e-05,114570.0,114560.0,0.31021848]
[1758510475229,4.706e-05,114570.0,114560.0,0.59977848]
[1758510475652,4.706e-05,114570.0,114560.0,0.60288848]
[1758510476869,4.706e-05,114570.0,114560.0,0.87258848]
[1758510478122,4.706e-05,114570.0,114560.0,0.87238848]
[1758510479778,4.706e-05,114570.0,114560.0,0.58302848]
[1758510480877,4.706e-05,114570.0,114560.0,0.87186848]
[1758510481083,4.706e-05,114570.0,114560.0,0.58302848]
[1758510481514,4.706e-05,114570.0,114560.0,0.87174848]
[1758510481996,4.706e-05,114570.0,114560.0,0.86863848]
[1758510483107,4.706e-05,114570.0,114560.0,0.87168848]
[1758510486606,4.706e-05,114570.0,114560.0,0.96608848]
[1758510490047,0.00204706,114570.0,114560.0,0.67431848]
[1758510490270,4.706e-05,114570.0,114560.0,0.96203848]
[1758510490667,4.706e-05,114570.0,114560.0,0.67431848]
[1758510490877,0.29391903,114570.0,114560.0,0.96008848]
[1758510491490,0.03020706,114570.0,114560.0,0.96211848]
[1758510491666,0.29068903,114570.0,114560.0,0.96211848]
[1758510491874,0.03020706,114570.0,114560.0,0.67439848]
[1758510492071,0.03020706,114570.0,114560.0,0.96195848]
[1758510494108,0.03020706,114570.0,114560.0,0.67439848]
[1758510494287,0.03020706,114570.0,114560.0,0.96163848]
[1758510494490,0.03020706,114570.0,114560.0,0.67439848]
[1758510494897,0.03020706,114570.0,114560.0,0.96155848]
[1758510495480,4.706e-05,114570.0,114560.0,0.96155848]
[1758510495699,4.706e-05,114570.0,114560.0,0.96460848]
[1758510496364,4.706e-05,114570.0,114560.0,0.96440848]
[1758510500188,4.706e-05,114570.0,114560.0,0.67744848]
[1758510500392,0.02697706,114570.0,114560.0,0.96099848]
[1758510501139,0.02697706,114570.0,114560.0,0.86659848]
[1758510501376,0.29061973,114570.0,114560.0,0.86659848]
[1758510501628,0.29384973,114570.0,114560.0,0.86440848]
[1758510501843,0.26891973,114570.0,114560.0,0.86432848]
[1758510502071,0.29384973,114570.0,114560.0,0.86432848]
[1758510503686,0.29384973,114570.0,114560.0,0.54781658]
[1758510503915,0.29384973,114570.0,114560.0,0.83397658]
[1758510506475,0.29384973,114570.0,114560.0,0.83373658]
[1758510506892,0.29384973,114570.0,114560.0,0.83361658]
[1758510507751,0.29384973,114570.0,114560.0,0.83353658]
[1758510514360,0.03020706,114570.0,114560.0,0.83353658]
[1758510514571,0.29384973,114570.0,114560.0,0.83353658]
[1758510516875,0.03020706,114570.0,114560.0,0.83353658]
[1758510517072,0.29384973,114570.0,114560.0,0.83353658]
[1758510519057,0.03020706,114570.0,114560.0,0.83353658]
[1758510519259,4.706e-05,114570.0,114560.0,0.83552658]
[1758510519456,4.706e-05,114570.0,114560.0,0.83869658]
[1758510520048,4.706e-05,114570.0,114560.0,0.86884848]
[1758510524374,4.706e-05,114570.0,114560.0,0.86395848]
[1758510524792,4.706e-05,114570.0,114560.0,0.86712848]
[1758510530574,4.706e-05,114570.0,114560.0,0.58312848]
[1758510530790,0.00219706,114570.0,114560.0,0.86327848]
[1758510531620,0.26877973,114570.0,114560.0,0.57796848]
[1758510531832,0.29365973,114570.0,114560.0,0.54781658]
[1758510532038,0.29365973,114570.0,114560.0,0.83101658]
[1758510534167,0.29365973,114570.0,114560.0,0.54781658]
[1758510534373,0.29365973,114570.0,114560.0,0.83101658]
[1758510536225,0.03001706,114570.0,114560.0,0.54781658]
[1758510536431,0.73186816,114570.0,114560.0,0.175581]
[1758510536850,0.73186816,114570.0,114560.0,0.001]
[1758510537033,1.04107696,114570.0,114560.0,0.001]
[1758510539900,0.75811696,114570.0,114560.0,0.001]
[1758510540103,0.84338663,114570.0,114560.0,0.001]
[1758510540527,1.12606663,114570.0,114560.0,0.001]
[1758510541774,1.3897093,114570.0,114560.0,0.001]
[1758510542613,1.16190235,114570.0,114560.0,0.001]
[1758510542810,1.44450235,114570.0,114560.0,0.001]
[1758510543048,1.44446235,114570.0,114560.0,0.001]
[1758510543678,1.16190235,114570.0,114560.0,0.001]
[1758510544003,0.17459624,114550.0,114540.0,0.00873057]
[1758510544225,0.70188158,114550.0,114540.0,0.00873057]
[1758510544468,1.01227158,114550.0,114540.0,0.00873057]
[1758510544696,1.03852582,114550.0,114540.0,0.00873057]
[1758510545039,0.75612582,114550.0,114540.0,0.00873057]
[1758510545249,0.75612582,114550.0,114540.0,0.01173057]
[1758510545634,1.03844582,114550.0,114540.0,0.01173057]
[1758510546077,1.03844582,114550.0,114540.0,0.003]
[1758510546460,1.12371549,114550.0,114540.0,0.003]
[1758510546678,1.53943816,114550.0,114540.0,0.003]
[1758510546855,1.82187816,114550.0,114540.0,0.003]
[1758510547266,1.55823549,114550.0,114540.0,0.005]
[1758510547688,1.27579549,114550.0,114540.0,0.003]
[1758510547954,1.55823549,114550.0,114540.0,0.003]
[1758510548160,0.17462673,114530.0,114520.0,0.18337261]
[1758510548334,0.7227694,114530.0,114520.0,0.18337261]
[1758510548576,1.01230207,114530.0,114510.0,0.18337724]
[1758510548777,0.52728534,114520.0,114510.0,0.26864691]
[1758510548981,0.55002534,114520.0,114510.0,0.26864691]
[1758510549205,0.28638267,114520.0,114510.0,0.27062691]
[1758510549414,0.26364267,114520.0,114510.0,0.34468162]
[1758510549616,0.29002267,114520.0,114510.0,0.34468162]
[1758510550065,0.57992429,114520.0,114510.0,0.34468162]
[1758510550638,0.57992429,114520.0,114510.0,0.34768162]
[1758510551237,0.58287429,114520.0,114510.0,0.34768162]
[1758510551451,0.58287429,114520.0,114510.0,0.34968162]
[1758510551899,0.57992429,114520.0,114510.0,0.34968162]
[1758510552094,0.02625895,114520.0,114510.0,0.35273162]
[1758510552371,0.28990162,114520.0,114510.0,0.35273162]
[1758510554187,0.28990162,114520.0,114510.0,0.62243162]
[1758510554459,0.02625895,114520.0,114510.0,0.62243162]
[1758510554749,0.02625895,114520.0,114510.0,0.72288352]
[1758510554949,0.29087267,114560.0,114550.0,0.17459624]
[1758510555151,0.58410267,114560.0,114550.0,0.17459624]
[1758510555360,0.58406267,114560.0,114550.0,0.17459624]
[1758510555573,0.61031636,114560.0,114550.0,0.17459624]
[1758510555773,0.61031636,114560.0,114550.0,0.17659624]
[1758510556003,0.87100903,114560.0,114550.0,0.17659624]
[1758510556440,0.87100903,114560.0,114550.0,0.17959624]
[1758510556643,0.29188636,114560.0,114550.0,0.17959624]
[1758510556797,0.55552903,114560.0,114550.0,0.17959624]
[1758510557021,0.05252369,114560.0,114550.0,0.17959624]
[1758510557226,0.60716636,114560.0,114550.0,0.18159624]
[1758510557677,0.60712636,114560.0,114550.0,0.18159624]
[1758510558102,0.87076903,114560.0,114550.0,0.18159624]
[1758510558287,0.87371903,114560.0,114550.0,0.17959624]
[1758510560343,0.34643369,114560.0,114550.0,0.17959624]